bitfinex/quotes_SOLUSD_20240716
["timestamp","ask_amount","ask_price","bid_price","bid_amount"]
[1721173305559,6.1846,161.7,161.64,6.1862]
[1721173305731,14.72,161.68,161.64,6.1862]
[1721173306037,21.1827,161.71,161.66,14.72]
[1721173306326,11.15313636,161.7,161.69,6.1843]
[1721173306527,14.72,161.73,161.69,6.1843]
[1721173306833,14.72,161.73,161.69,7.42107123]
[1721173307150,21.6186,161.75,161.69,7.42107123]
[1721173307337,14.72,161.74,161.7,6.184]
[1721173307536,14.72,161.73,161.68,36.3668]
[1721173307751,20.0,161.72,161.68,36.3668]
[1721173308124,34.72,161.72,161.68,21.6468]
[1721173308324,14.72,161.72,161.69,6.1846]
[1721173308733,14.72,161.7,161.68,15.4618]
[1721173309052,14.72,161.71,161.68,21.6468]
[1721173309255,14.72,161.71,161.66,20.9055]
[1721173309434,6.1836,161.72,161.66,20.9055]
[1721173309435,14.72,161.7,161.66,6.1855]
[1721173309632,6.1831,161.74,161.67,15.4634]
[1721173309829,0.17,161.73,161.64,15.4664]
[1721173310169,14.72,161.68,161.65,6.1858]
[1721173310459,14.72,161.68,161.66,6.1854]
[1721173311028,14.72,161.68,161.63,14.72]
[1721173311029,21.6186,161.75,161.67,14.72]
[1721173311250,14.72,161.73,161.7,21.6444]
[1721173311463,14.72,161.73,161.72,6.1835]
[1721173311759,34.72,161.73,161.7,21.6444]
[1721173311927,20.0,161.72,161.7,21.6444]
[1721173312753,20.0,161.72,161.7,15.4605]
[1721173313058,34.72,161.72,161.68,6.1849]
[1721173313269,34.72,161.72,161.7,6.1842]
[1721173313557,34.72,161.72,161.68,6.1846]
[1721173314137,34.72,161.72,161.67,30.1833]
[1721173314138,34.72,161.72,161.69,6.1846]
[1721173314342,20.0,161.72,161.69,6.1846]
[1721173314654,20.0,161.73,161.69,6.1846]
[1721173315462,26.1832,161.73,161.68,6.1849]
[1721173315653,20.0,161.73,161.67,15.4633]
[1721173315857,21.6186,161.75,161.67,15.4633]
[1721173315858,26.183,161.74,161.69,6.1843]
[1721173316235,6.1831,161.73,161.69,6.1843]
[1721173316456,20.0,161.72,161.69,6.1843]
[1721173316635,20.0,161.74,161.69,15.461]
[1721173316942,20.0,161.74,161.71,6.1838]
[1721173317159,26.1829,161.74,161.69,21.6456]
[1721173317662,20.0,161.74,161.71,6.1836]
[1721173319868,26.1828,161.74,161.69,15.461]
[1721173320060,20.0,161.74,161.69,15.461]
[1721173320358,20.0,161.74,161.7,6.1841]
[1721173320550,20.0,161.74,161.71,6.1838]
[1721173321130,20.0,161.74,161.72,6.1834]
[1721173321547,20.0,161.74,161.71,21.6428]
[1721173322161,20.0,161.74,161.72,6.1834]
[1721173322364,20.0,161.74,161.73,6.1831]
[1721173322548,20.0,161.74,161.72,6.1834]
[1721173322748,7.0039138,161.77,161.73,6.1831]
[1721173323047,20.0,161.76,161.73,6.1831]
[1721173324174,26.1821,161.76,161.71,21.6428]
[1721173324534,20.0,161.76,161.73,6.1828]
[1721173324738,0.8223138,161.77,161.73,6.1828]
[1721173325141,0.8223138,161.77,161.75,6.1822]
[1721173325547,0.8223138,161.77,161.76,21.6368]
[1721173327860,0.8223138,161.77,161.69,30.9231]
[1721173328057,7.0042138,161.77,161.72,6.1834]
[1721173328258,6.182,161.76,161.72,6.1834]
[1721173328468,26.182,161.76,161.72,6.1834]
[1721173328966,6.1825,161.75,161.71,6.1838]
[1721173329261,20.0,161.74,161.71,6.1838]
[1721173329647,20.0,161.74,161.72,6.1834]
[1721173329862,26.1824,161.75,161.69,15.4611]
[1721173330260,6.1828,161.74,161.7,6.1842]
[1721173330541,6.1828,161.74,161.69,21.6457]
[1721173330760,6.1828,161.74,161.69,21.6456]
[1721173330959,6.1832,161.73,161.69,21.6456]
[1721173331187,6.1835,161.72,161.66,15.4642]
[1721173331344,6.1835,161.72,161.67,6.185]
[1721173331539,20.0,161.75,161.68,15.4618]
[1721173331765,20.34,161.76,161.68,15.4618]
[1721173331943,6.184,161.71,161.65,15.4649]
[1721173332367,20.0,161.7,161.65,15.4649]
[1721173332745,0.34,161.76,161.67,15.4631]
[1721173332957,0.34,161.76,161.69,6.1845]
[1721173333149,6.1834,161.73,161.68,6.1849]
[1721173333350,20.0,161.72,161.67,15.4631]
[1721173333565,20.0,161.73,161.67,15.4631]
[1721173333943,20.0,161.73,161.67,21.6482]
[1721173334150,6.1838,161.72,161.68,6.1849]
[1721173334349,20.0,161.71,161.68,6.1849]
[1721173334652,20.0,161.71,161.65,6.1861]
[1721173334980,20.0,161.71,161.61,46.2213]
[1721173334981,6.1855,161.67,161.63,6.1867]
[1721173335194,12.8098,161.7,161.63,15.4667]
[1721173335357,20.0,161.69,161.66,6.1857]
[1721173335674,20.0,161.69,161.67,6.1853]
[1721173336046,6.1835,161.73,161.68,6.185]
[1721173336271,20.0,161.72,161.69,6.1844]
[1721173336465,20.0,161.73,161.67,15.4628]
[1721173336692,6.1839,161.71,161.67,15.4628]
[1721173336899,6.1843,161.7,161.67,15.4628]
[1721173337601,20.0,161.74,161.68,6.1849]
[1721173337602,6.1835,161.73,161.68,6.1849]
[1721173337802,20.0,161.72,161.68,6.1849]
[1721173338302,22.3063,161.75,161.68,6.1849]
[1721173338303,6.1832,161.73,161.68,6.1849]
[1721173338593,20.0,161.72,161.68,6.1849]
[1721173339570,26.1836,161.72,161.68,6.1849]
[1721173339770,20.0,161.72,161.69,6.1844]
[1721173340075,20.0,161.72,161.7,6.1841]
[1721173340291,6.1833,161.73,161.69,21.6456]
[1721173340478,20.0,161.72,161.69,15.4611]
[1721173340680,26.1835,161.72,161.68,6.1849]
[1721173340876,26.1835,161.72,161.67,6.1853]
[1721173341080,26.1835,161.72,161.66,15.464]
[1721173341081,20.0,161.72,161.68,6.185]
[1721173341505,26.1837,161.72,161.67,6.1853]
[1721173341676,20.0,161.72,161.67,6.1853]
[1721173341875,6.1846,161.7,161.66,15.464]
[1721173342085,6.1846,161.69,161.64,6.1863]
[1721173342292,6.1846,161.69,161.61,15.2838]
[1721173342490,20.0,161.68,161.63,6.1866]
[1721173342696,26.1851,161.68,161.63,6.1866]
[1721173342877,20.0,161.68,161.62,6.1872]
[1721173343507,6.1863,161.65,161.61,15.4689]
[1721173343677,6.1865,161.64,161.61,15.4689]
[1721173343878,6.1863,161.65,161.61,15.4689]
[1721173344201,6.1863,161.65,161.6,6.188]
[1721173344202,20.0,161.64,161.6,6.188]
[1721173344408,20.0,161.64,161.61,6.1876]
[1721173344588,20.0,161.64,161.59,6.1881]
[1721173344974,20.0,161.64,161.6,6.1878]
[1721173345175,20.0,161.64,161.61,6.1876]
[1721173345371,20.0,161.64,161.59,6.1881]
[1721173345988,20.0,161.64,161.6,6.188]
[1721173346193,20.0,161.64,161.6,15.4696]
[1721173346500,6.1858,161.66,161.6,15.4696]
[1721173346706,20.0,161.65,161.6,15.4696]
[1721173346911,20.0,161.65,161.57,15.7237]
[1721173347084,20.0,161.65,161.62,15.4678]
[1721173347406,20.0,161.67,161.62,15.4678]
[1721173347577,6.1859,161.66,161.62,21.6548]
[1721173347881,20.0,161.65,161.62,21.6551]
[1721173348509,20.0,161.65,161.62,15.4678]
[1721173348681,20.0,161.65,161.57,15.7237]
[1721173348682,20.0,161.67,161.6,6.188]
[1721173349011,6.1862,161.65,161.6,6.1879]
[1721173349302,20.0,161.64,161.61,15.4687]
[1721173349808,6.1865,161.65,161.61,15.4687]
[1721173349980,20.0,161.67,161.63,6.1865]
[1721173350177,26.1854,161.67,161.62,6.1873]
[1721173350392,20.0,161.67,161.63,6.1869]
[1721173350774,6.5014,161.69,161.64,1.23717442]
[1721173350979,6.5014,161.69,161.66,6.1858]
[1721173351303,6.5014,161.69,161.65,7.42318467]
[1721173351498,12.6861,161.69,161.65,7.42318467]
[1721173351804,12.6861,161.69,161.64,6.1865]
[1721173352012,6.5014,161.69,161.65,6.1861]
[1721173352311,20.0,161.68,161.66,6.1858]
[1721173352479,26.1844,161.7,161.65,21.6507]
[1721173352678,6.1849,161.69,161.65,15.4649]
[1721173352878,20.0,161.68,161.65,21.6508]
[1721173353413,6.1854,161.67,161.63,6.1866]
[1721173353611,20.0,161.69,161.61,15.4687]
[1721173353810,6.1865,161.65,161.61,15.4687]
[1721173354294,26.1865,161.64,161.61,15.4687]
[1721173354501,26.1865,161.64,161.58,15.4718]
[1721173354502,20.0,161.64,161.58,15.4718]
[1721173354814,6.1866,161.64,161.59,6.1884]
[1721173355021,6.1866,161.64,161.6,21.6578]
[1721173355390,6.1866,161.64,161.6,15.4698]
[1721173356915,6.1863,161.65,161.61,6.1876]
[1721173357078,20.0,161.64,161.61,6.1876]
[1721173357284,41.6135,161.66,161.61,6.1876]
[1721173357510,35.4276,161.66,161.6,21.6578]
[1721173357706,6.1863,161.65,161.6,21.6578]
[1721173357907,20.0,161.64,161.6,21.6578]
[1721173358414,20.0,161.64,161.6,15.4698]
[1721173358704,20.0,161.65,161.6,15.4698]
[1721173358913,20.0,161.65,161.62,6.1873]
[1721173359208,20.0,161.65,161.63,6.1866]
[1721173359508,20.0,161.65,161.62,21.6551]
[1721173359710,20.0,161.65,161.58,15.4713]
[1721173359883,26.1863,161.65,161.6,6.1878]
[1721173360085,20.0,161.65,161.62,6.1872]
[1721173360306,26.1862,161.65,161.61,6.1876]
[1721173360713,26.1862,161.65,161.6,6.1879]
[1721173361087,26.1863,161.65,161.6,6.1879]
[1721173361609,6.1867,161.64,161.6,6.1879]
[1721173361908,20.0,161.65,161.59,15.4706]
[1721173362708,6.1868,161.64,161.59,21.659]
[1721173362913,20.0,161.65,161.62,15.4681]
[1721173363792,15.9003,161.71,161.64,15.4658]
[1721173363997,26.1843,161.7,161.65,6.1861]
[1721173365303,6.1843,161.7,161.65,6.1861]
[1721173365505,28.2128,161.71,161.66,6.1854]
[1721173365905,6.1844,161.7,161.65,6.186]
[1721173366219,6.1847,161.69,161.64,21.6523]
[1721173366611,6.1852,161.68,161.64,15.4658]
[1721173366794,6.1847,161.69,161.64,21.6523]
[1721173366994,28.2131,161.71,161.64,15.4658]
[1721173367210,20.0,161.7,161.64,15.4658]
[1721173367614,20.0,161.7,161.66,6.1857]
[1721173368725,26.1843,161.7,161.66,6.1857]
[1721173368918,26.1843,161.7,161.65,6.1861]
[1721173369518,20.0,161.7,161.66,6.1857]
[1721173369718,26.1844,161.7,161.66,6.1857]
[1721173369903,20.0,161.7,161.66,6.1857]
[1721173370100,26.1844,161.7,161.65,6.1861]
[1721173370318,20.0,161.7,161.65,6.1861]
[1721173370630,6.1846,161.69,161.64,21.6523]
[1721173371023,6.1847,161.69,161.64,21.6523]
[1721173371206,6.1847,161.69,161.65,6.1862]
[1721173372630,6.1847,161.69,161.64,15.4658]
[1721173372807,6.1851,161.68,161.64,15.4658]
[1721173373130,6.1847,161.69,161.64,21.6522]
[1721173373331,26.1843,161.7,161.65,6.1861]
[1721173373932,20.0,161.7,161.65,6.1861]
[1721173374232,26.1844,161.7,161.65,6.1861]
[1721173374925,20.0,161.7,161.65,6.1861]
[1721173375232,6.1846,161.69,161.65,6.1861]
[1721173375414,26.1844,161.7,161.66,15.4641]
[1721173376126,20.0,161.7,161.67,6.1854]
[1721173376532,20.0,161.7,161.66,21.6498]
[1721173376727,20.0,161.7,161.67,6.1853]
[1721173378328,20.0,161.7,161.66,21.6497]
[1721173378738,20.0,161.7,161.66,15.4641]
[1721173379416,20.0,161.7,161.68,6.1849]
[1721173379738,20.0,161.7,161.67,6.1854]
[1721173380636,20.0,161.7,161.66,21.6498]
[1721173380832,26.1843,161.7,161.66,21.6498]
[1721173381144,20.0,161.7,161.66,21.6498]
[1721173381316,20.0,161.7,161.6,49.5703]
[1721173381317,20.0,161.7,161.63,15.467]
[1721173382025,6.1851,161.68,161.64,6.1865]
[1721173382226,14.72,161.66,161.64,6.1865]
[1721173382428,14.72,161.65,161.63,15.467]
[1721173382736,14.72,161.64,161.63,15.467]
[1721173384036,14.72,161.64,161.6,52.5976]
[1721173384334,14.72,161.63,161.61,6.1873]
[1721173385238,14.72,161.63,161.62,6.1873]
[1721173386959,14.72,161.63,161.51,46.8595]
[1721173386960,34.89,161.63,161.51,46.8595]
[1721173387120,28.182,161.6,161.55,21.664]
[1721173387327,14.72,161.56,161.51,30.9563]
[1721173387628,20.0,161.59,161.51,30.9563]
[1721173387629,20.0,161.59,161.55,6.1899]
[1721173387938,26.1885,161.59,161.55,6.1899]
[1721173388124,14.72,161.56,161.54,21.6658]
[1721173388323,14.72,161.55,161.54,21.6658]
[1721173388541,14.72,161.55,161.54,15.4755]
[1721173389953,14.72,161.55,161.53,6.1907]
[1721173390250,6.1889,161.58,161.53,6.1907]
[1721173390443,20.0,161.57,161.53,6.1907]
[1721173390853,20.0,161.57,161.51,15.4784]
[1721173391055,6.1907,161.54,161.48,15.4817]
[1721173391264,35.6701,161.55,161.5,6.1917]
[1721173391558,6.1901,161.55,161.51,6.1914]
[1721173391753,20.0,161.54,161.53,21.6678]
[1721173391962,21.9938,161.6,161.54,6.19]
[1721173392132,6.1892,161.58,161.53,15.477]
[1721173392333,20.0,161.57,161.53,15.477]
[1721173392927,26.1893,161.57,161.53,21.6677]
[1721173393455,26.1893,161.57,161.54,1.23793599]
[1721173394154,26.1893,161.57,161.53,15.477]
[1721173394460,20.0,161.57,161.53,21.6677]
[1721173394627,20.0,161.57,161.54,6.1903]
[1721173395041,20.0,161.57,161.55,6.19]
[1721173395244,26.1885,161.59,161.55,1.23787284]
[1721173395656,6.1889,161.58,161.55,1.23787284]
[1721173395953,20.0,161.57,161.55,1.23787284]
[1721173396152,20.0,161.57,161.53,21.6676]
[1721173396536,20.0,161.57,161.54,6.1903]
[1721173397063,20.0,161.57,161.49,21.673]
[1721173397064,6.1906,161.54,161.49,21.673]
[1721173397364,20.0,161.57,161.49,21.673]
[1721173397534,20.0,161.57,161.5,6.1918]
[1721173397953,6.1904,161.55,161.5,6.1918]
[1721173398130,6.1905,161.54,161.5,6.1918]
[1721173398335,6.1899,161.56,161.51,6.1915]
[1721173398534,20.0,161.55,161.49,15.4808]
[1721173398759,6.1902,161.55,161.5,6.1918]
[1721173399163,6.1904,161.54,161.5,6.1918]
[1721173400250,6.19,161.55,161.5,6.1918]
[1721173400563,6.1905,161.54,161.5,6.1918]
[1721173401059,6.1898,161.56,161.51,6.1912]
[1721173401237,20.0,161.55,161.51,6.1912]
[1721173401634,26.1903,161.55,161.49,15.4808]
[1721173401858,26.1903,161.55,161.5,6.1917]
[1721173403152,6.1904,161.54,161.5,6.1917]
[1721173405157,6.1911,161.52,161.46,32.0868]
[1721173405370,6.1909,161.53,161.48,6.1924]
[1721173405668,20.0,161.52,161.48,6.1924]
[1721173406643,20.0,161.52,161.49,6.1923]
[1721173407269,26.1913,161.52,161.48,21.6739]
[1721173408845,20.0,161.52,161.49,6.1921]
[1721173409253,20.0,161.53,161.49,6.1922]
[1721173409573,26.1908,161.53,161.49,6.1922]
[1721173409950,20.0,161.53,161.49,6.1922]
[1721173410154,20.0,161.53,161.5,1.23820847]
[1721173410352,14.75,161.51,161.5,1.23820847]
[1721173410576,14.75,161.51,161.46,31.3538]
[1721173410761,14.75,161.51,161.47,6.1928]
[1721173411173,14.75,161.5,161.48,6.1927]
[1721173411854,14.75,161.5,161.49,6.1923]
[1721173412053,14.75,161.52,161.49,6.1923]
[1721173412671,14.75,161.52,161.48,21.6739]
[1721173413156,14.75,161.51,161.48,21.6739]
[1721173413575,14.75,161.52,161.48,21.6739]
[1721173414074,18.59,161.64,161.48,15.4814]
[1721173414375,14.75,161.55,161.51,6.1914]
[1721173414549,14.75,161.54,161.51,6.1914]
[1721173415180,14.75,161.55,161.52,7.42913217]
[1721173415484,14.75,161.55,161.53,6.1906]
[1721173415673,14.75,161.56,161.54,6.1904]
[1721173415852,14.75,161.56,161.53,7.42852151]
[1721173416680,14.75,161.56,161.54,6.1902]
[1721173417069,14.75,161.56,161.53,6.1906]
[1721173417799,14.75,161.55,161.53,6.1906]
[1721173418984,14.75,161.55,161.52,21.6687]
[1721173419193,14.75,161.55,161.52,15.4776]
[1721173419367,14.75,161.54,161.52,15.4776]
[1721173420395,14.75,161.54,161.53,6.1906]
[1721173420573,14.75,161.55,161.52,15.4776]
[1721173420771,14.75,161.55,161.53,6.1907]
[1721173421800,14.75,161.55,161.54,6.1904]
[1721173422371,14.75,161.57,161.55,6.1899]
[1721173424686,87.1819,161.6,161.55,6.1899]
[1721173424887,26.1885,161.59,161.55,6.1899]
[1721173425301,26.1887,161.59,161.54,21.6659]
[1721173425671,6.1889,161.58,161.54,21.6659]
[1721173426975,26.1886,161.59,161.54,21.6659]
[1721173427893,14.75,161.58,161.54,21.6659]
[1721173428068,16.2378,161.63,161.55,1.23779942]
[1721173428268,6.5254,161.64,161.59,30.2212]
[1721173428469,6.5254,161.64,161.6,1.23748315]
[1721173428470,27.4622,161.64,161.6,1.23748315]
[1721173428670,20.9362,161.65,161.6,20.938]
[1721173429090,20.9362,161.65,161.61,6.1876]
[1721173429997,14.75,161.64,161.59,30.2212]
[1721173430689,6.1869,161.63,161.59,36.4095]
[1721173430878,14.75,161.64,161.6,6.1879]
[1721173431881,20.9365,161.65,161.6,6.1879]
[1721173432398,20.0,161.64,161.6,6.1879]
[1721173432695,20.0,161.64,161.61,6.1877]
[1721173432996,20.0,161.64,161.61,7.42503235]
[1721173433203,20.0,161.64,161.59,15.4712]
[1721173433204,6.5254,161.68,161.65,6.186]
[1721173433380,14.75,161.69,161.66,6.1857]
[1721173433698,14.75,161.69,161.66,7.42279362]
[1721173434004,6.1839,161.71,161.67,6.1854]
[1721173434184,20.9339,161.71,161.67,6.1854]
[1721173434498,20.9339,161.71,161.66,15.98709362]
[1721173434499,6.1843,161.7,161.66,22.17279362]
[1721173434804,6.1843,161.7,161.66,14.75]
[1721173435105,20.9343,161.7,161.65,36.4011]
[1721173435282,6.1843,161.7,161.66,20.9357]
[1721173435476,20.934,161.71,161.66,20.9357]
[1721173435897,20.0,161.7,161.66,20.9357]
[1721173436083,26.1842,161.7,161.66,20.9357]
[1721173436484,20.0,161.7,161.66,20.9357]
[1721173436981,20.0,161.7,161.66,6.1857]
[1721173437186,34.75,161.7,161.66,6.1857]
[1721173437795,20.0,161.7,161.66,6.1857]
[1721173438097,26.1843,161.7,161.65,21.651]
[1721173438295,20.0,161.7,161.6,77.59]
[1721173438480,6.1839,161.71,161.67,14.75]
[1721173438686,20.9339,161.71,161.68,1.23686259]
[1721173438888,14.75,161.71,161.68,1.23686259]
[1721173439102,21.1943,161.72,161.68,1.23686259]
[1721173439296,27.3779,161.72,161.68,1.23686259]
[1721173440002,14.75,161.71,161.66,14.75]
[1721173440204,6.1839,161.71,161.66,20.9356]
[1721173440578,6.4443,161.72,161.66,20.9358]
[1721173440796,14.75,161.7,161.59,46.7973]
[1721173441000,14.75,161.67,161.62,6.187]
[1721173441207,6.1844,161.7,161.64,15.466]
[1721173441379,20.9355,161.67,161.59,46.7973]
[1721173441582,20.9358,161.66,161.61,30.2191]
[1721173441796,14.75,161.65,161.61,21.6567]
[1721173442002,20.9362,161.65,161.61,15.4691]
[1721173442384,14.75,161.65,161.61,21.6567]
[1721173442808,14.75,161.65,161.62,6.1872]
[1721173442988,14.75,161.65,161.63,6.1869]
[1721173443196,14.75,161.66,161.63,6.1869]
[1721173443500,14.75,161.67,161.62,14.75]
[1721173443682,34.75,161.66,161.63,6.1868]
[1721173444303,14.75,161.66,161.61,14.75]
[1721173444499,22.5542,161.69,161.65,6.1862]
[1721173444690,14.75,161.67,161.65,6.1862]
[1721173444904,14.75,161.67,161.63,15.4666]
[1721173445401,6.4443,161.72,161.65,15.4647]
[1721173445601,6.4443,161.72,161.65,14.75]
[1721173445602,14.75,161.7,161.65,14.75]
[1721173445804,20.9343,161.7,161.66,6.1854]
[1721173446193,14.75,161.69,161.66,6.1854]
[1721173446606,14.75,161.68,161.64,21.6523]
[1721173446910,14.75,161.68,161.65,6.186]
[1721173447081,14.75,161.68,161.64,15.4661]
[1721173447082,14.75,161.68,161.64,21.6526]
[1721173447284,6.1855,161.67,161.61,15.469]
[1721173447488,20.9355,161.67,161.61,15.469]
[1721173447689,14.75,161.67,161.63,6.1869]
[1721173448095,14.75,161.66,161.63,6.1869]
[1721173449326,14.75,161.65,161.63,6.1869]
[1721173449501,14.75,161.65,161.62,6.1873]
[1721173449925,14.75,161.63,161.61,21.6566]
[1721173450144,14.75,161.63,161.61,15.469]
[1721173450815,14.75,161.62,161.61,15.469]
[1721173451011,14.75,161.62,161.6,6.188]
[1721173451522,14.75,161.61,161.59,6.1884]
[1721173451740,14.75,161.62,161.59,6.1884]
[1721173451903,14.75,161.61,161.59,6.1884]
[1721173452300,6.1866,161.64,161.6,6.1881]
[1721173452504,20.0,161.63,161.6,6.1881]
[1721173452809,14.75,161.61,161.6,6.1881]
[1721173454131,14.75,161.61,161.58,21.6603]
[1721173454319,20.0,161.63,161.58,15.4718]
[1721173454504,14.75,161.61,161.58,15.4718]
[1721173454705,14.75,161.61,161.59,6.1884]
[1721173454906,14.75,161.6,161.58,15.4718]
[1721173455326,34.75,161.59,161.56,6.1895]
[1721173455641,14.75,161.58,161.57,6.1892]
[1721173456529,14.75,161.59,161.57,6.1892]
[1721173456742,14.75,161.59,161.56,6.1895]
[1721173457030,6.1877,161.61,161.56,6.1895]
[1721173457031,14.75,161.58,161.56,6.1895]
[1721173457926,14.75,161.57,161.55,21.6648]
[1721173458926,14.75,161.56,161.55,21.6648]
[1721173459128,14.75,161.56,161.55,15.4749]
[1721173459309,14.75,161.56,161.55,21.6649]
[1721173460334,14.75,161.56,161.52,15.4776]
[1721173460506,14.75,161.54,161.52,15.4776]
[1721173460917,14.75,161.54,161.53,6.1906]
[1721173464019,14.75,161.54,161.52,21.6686]
[1721173465535,14.75,161.53,161.52,21.6686]
[1721173465713,34.75,161.53,161.51,6.1914]
[1721173466037,14.75,161.52,161.49,21.6726]
[1721173466231,14.75,161.5,161.49,21.6726]
[1721173466841,14.75,161.5,161.46,15.4834]
[1721173467042,14.75,161.49,161.47,6.1927]
[1721173467413,14.75,161.48,161.46,21.6768]
[1721173467952,14.75,161.48,161.47,6.1931]
[1721173468113,14.75,161.5,161.48,21.6735]
[1721173468316,14.75,161.49,161.48,21.6735]
[1721173468530,14.75,161.49,161.48,15.481]
[1721173469120,14.75,161.49,161.48,21.6737]
[1721173469629,14.75,161.49,161.48,15.481]
[1721173469938,14.75,161.49,161.48,21.6737]
[1721173470349,6.4506,161.53,161.49,6.1919]
[1721173470635,34.75,161.52,161.49,6.1922]
[1721173470845,14.75,161.51,161.48,15.481]
[1721173471047,20.0,161.52,161.48,15.481]
[1721173471215,14.75,161.52,161.48,15.481]
[1721173471426,14.75,161.52,161.49,6.1922]
[1721173471629,14.75,161.51,161.48,21.6735]
[1721173471829,14.75,161.51,161.49,6.1923]
[1721173472050,14.75,161.51,161.5,6.1919]
[1721173472246,14.75,161.51,161.45,15.4842]
[1721173472551,14.75,161.51,161.49,6.1923]
[1721173472758,14.75,161.5,161.48,6.1926]
[1721173473058,14.75,161.5,161.47,15.482]
[1721173473059,14.75,161.51,161.49,6.1922]
[1721173473367,6.1912,161.52,161.48,6.1926]
[1721173473529,14.75,161.51,161.48,6.1926]
[1721173474062,14.75,161.51,161.47,21.6749]
[1721173474362,14.75,161.51,161.48,6.1926]
[1721173474542,6.1909,161.53,161.48,6.1926]
[1721173474731,14.75,161.51,161.48,6.1926]
[1721173475451,14.75,161.51,161.49,6.1923]
[1721173475628,6.1908,161.53,161.49,6.1923]
[1721173475828,34.75,161.52,161.49,6.1923]
[1721173476559,34.75,161.52,161.48,6.1925]
[1721173477139,34.75,161.52,161.49,6.1922]
[1721173478239,20.0,161.52,161.5,6.1919]
[1721173478438,34.75,161.53,161.5,6.1919]
[1721173478963,40.9408,161.53,161.49,21.6725]
[1721173479633,20.9412,161.52,161.49,15.4802]
[1721173479833,20.9412,161.52,161.48,6.1925]
[1721173480052,14.75,161.52,161.48,6.1925]
[1721173480257,14.75,161.51,161.48,6.1925]
[1721173480953,14.75,161.51,161.46,30.2331]
[1721173481156,14.75,161.51,161.48,6.1926]
[1721173482133,14.75,161.51,161.49,6.1922]
[1721173483457,14.75,161.51,161.48,21.674]
[1721173483656,14.75,161.51,161.48,15.4814]
[1721173484165,14.75,161.5,161.48,15.4814]
[1721173486268,14.75,161.49,161.46,6.1933]
[1721173486659,14.75,161.49,161.47,6.193]
[1721173486841,14.75,161.49,161.45,21.6778]
[1721173487168,14.75,161.49,161.46,6.1932]
[1721173488174,14.75,161.49,161.47,6.193]
[1721173489665,14.75,161.49,161.45,15.4844]
[1721173490260,14.75,161.49,161.46,6.1932]
[1721173491454,14.75,161.49,161.47,6.193]
[1721173491773,14.75,161.48,161.47,6.193]
[1721173495160,14.75,161.48,161.45,15.4844]
[1721173495377,14.75,161.48,161.46,6.1932]
[1721173495670,14.75,161.47,161.45,21.6781]
[1721173497361,14.75,161.47,161.42,14.75]
[1721173497362,14.75,161.46,161.44,6.1941]
[1721173498150,6.362,161.51,161.42,15.4869]
[1721173498151,14.75,161.45,161.43,6.1945]